Workbook

Sheet Main
A1: MONTE CARLO SIMULATION - ASIAN BASKET OPTION
B4: Input initial Parameters here: | G4: Input Standard Deviation:
C5: A | D5: B | E5: C | G5: A | H5: B | I5: C | K5: # Steps | L5: 24
B6: S(0) | C6: =10938.14 -> 10938.14 | D6: =4980.25 -> 4980.25 | E6: =10325.38 -> 10325.38 | G6: =0.0223197329092687 -> 0.02231973291 | H6: =0.0314665834496647 -> 0.03146658345 | I6: =0.0281701289093585 -> 0.02817012891 | K6: # Simulations | L6: 10000 | O6: 10000
B7: r(f) | C7: =LN(1+0.0063)/252 -> 2.49215792e-05 | D7: =LN(1+0.0376)/252 -> 0.0001464696588 | E7: =LN(1+0.0015)/252 -> 5.947921126e-06
B8: cov | C8: -0.0003079596147 | D8: -9.769190652e-05 | E8: -4.610199667e-05
B9: q | C9: =0.0097/252 -> 3.849206349e-05 | D9: =4.12%/252 -> 0.0001634920635 | E9: =3.19%/252 -> 0.0001265873016 | G9: Last Process initiated 08 paź 2008, at 18:59:21 | M9: Optt. Value | N9: =Results!C4 -> 0.4667185313
B10: dt | C10: 1 | D10: 1 | E10: 1 | G10: Last Process terminated 08 paź 2008, at 19:05:48

Sheet SimCalc
Y1: =LN(1+4.41%) -> 0.04315527031 | AC1: 0.0006299407883 | AF1: =1/SQRT(252) -> 0.06299407883
A2: 9999 | B2: BOX MULLER | X2: =X36/$E$5 -> 9944.129357 | Y2: =Y36/$E$5 -> 4510.533297 | Z2: 9318.99837 | AC2: =B13*SQRT(252) -> 0.3543147756 | AD2: =C13*SQRT(252) -> 0.4995165265 | AE2: 0.447186933
B3: A | C3: B | D3: C | X3: =(X38/B18) -> 0.9091243444 | Y3: =Y38/C18 -> 0.9056841117 | Z3: =Z38/D18 -> 0.9025332114 | AC3: =(AC2+0.01)/SQRT(252)-B13 -> 0.0006299407883 | AD3: =(AD2+0.01)/SQRT(252)-C13 -> 0.0006299407883 | AE3: =(AE2+0.01)/SQRT(252)-D13 -> 0.0006299407883
B4: 0.4853907409 | C4: 1.526073252 | D4: -0.5943522561 | Y4: =AVERAGE(X3:Z3) -> 0.9057805558
D5: N.Steps | E5: =Main!L5 -> 24
F6: Cholesky | O6: 8
B7: Random Numbers with Normal Distribution (Correlated) | F7: =Cholesky!E21 -> 1 | G7: =Cholesky!F21 -> 0 | H7: =Cholesky!G21 -> 0
B8: =MMULT(B4:D4,F7:H9) -> 1.268537662 | C8: 0.8529615712 | D8: -0.404612663 | F8: =Cholesky!E22 -> 0.5376665443 | G8: =Cholesky!F22 -> 0.8431575696 | H8: =Cholesky!G22 -> 0
F9: =Cholesky!E23 -> 0.06287788036 | G9: =Cholesky!F23 -> 0.729800616 | H9: =Cholesky!G23 -> 0.680762391
B11: Standard Deviation | F11: Random Numbers with Normal Distribution (Correlated) | I11: Multiplication SD x Random Numbers (Correlated) | L11: STEP A | O11: STEP B | R11: EXPONENTIAL | U11: exp(t-1) | X11: Sum (S) | AA11: Sum(S2) | AE11: SIMULATIONS
B12: A | C12: B | D12: C
B13: =Main!G6 -> 0.02231973291 | C13: =Main!H6 -> 0.03146658345 | D13: =Main!I6 -> 0.02817012891 | X13: 10400.05508 | Y13: 4739.913542 | Z13: 9824.431458 | AA13: 0.0004503625916 | AB13: 0.0008968870098 | AC13: 0.0007184233436 | AE13: 1.128768444 | AF13: 1 | AG13: 1.128768444
X14: 20648.66907 | Y14: 9406.147995 | Z14: 19499.1672 | AA14: 0.0004373421176 | AB14: 0.0008692205907 | AC14: 0.0006966967817 | AE14: 1.048071862 | AF14: 1 | AG14: 1.048071862
B15: Multiplication SD x Random Numbers (Correlated) | X15: 30926.39636 | Y15: 14082.86832 | Z15: 29196.71997 | AA15: 0.0004398303671 | AB15: 0.0008731315699 | AC15: 0.0006999868536 | AE15: 0.8713216447 | AF15: 0 | AG15: 0.8713216447
B16: =B8*B13 -> 0.02831342181 | C16: =C8*C13 -> 0.02683978646 | D16: -0.01139799087 | X16: 41222.164 | Y16: 18765.1107 | Z16: 38899.66526 | AA16: 0.0004413757782 | AB16: 0.0008751946993 | AC16: 0.0007007655558 | AE16: 0.9382504639 | AF16: 0 | AG16: 0.9382504639
X17: 51527.1525 | Y17: 23444.09619 | Z17: 48607.42633 | AA17: 0.0004421667218 | AB17: 0.0008739775756 | AC17: 0.0007014613366 | AE17: 0.9191673394 | AF17: 0 | AG17: 0.9191673394
A18: S(0) | B18: =Main!C6 -> 10938.14 | C18: =Main!D6 -> 4980.25 | D18: =Main!E6 -> 10325.38 | X18: 61811.01785 | Y18: 28109.26414 | Z18: 58289.38792 | AA18: 0.0004403558744 | AB18: 0.0008688233006 | AC18: 0.000697737865 | AE18: 0.9457019932 | AF18: 0 | AG18: 0.9457019932
A19: r(f) | B19: =Main!C7 -> 2.49215792e-05 | C19: =Main!D7 -> 0.0001464696588 | D19: =Main!E7 -> 5.947921126e-06 | X19: 71992.66663 | Y19: 32727.11009 | Z19: 67866.32244 | AA19: 0.0004316455368 | AB19: 0.0008512865591 | AC19: 0.0006826822604 | AE19: 0.9042787483 | AF19: 0 | AG19: 0.9042787483
A20: cov | B20: =Main!C8 -> -0.0003079596147 | C20: =Main!D8 -> -9.769190652e-05 | D20: =Main!E8 -> -4.610199667e-05 | X20: 82640.93278 | Y20: 37560.53379 | Z20: 77857.29052 | AA20: 0.0004721161175 | AB20: 0.0009326240888 | AC20: 0.00074298616 | AE20: 1.039068613 | AF20: 1 | AG20: 1.039068613
A21: q | B21: =Main!C9 -> 3.849206349e-05 | C21: =Main!D9 -> 0.0001634920635 | D21: =Main!E9 -> 0.0001265873016 | X21: 93158.41293 | Y21: 42331.7782 | Z21: 87711.94814 | AA21: 0.0004605899236 | AB21: 0.0009087830586 | AC21: 0.000722850793 | AE21: 0.9478327548 | AF21: 0 | AG21: 0.9478327548
A22: dt | B22: =Main!C10 -> 1 | C22: =Main!D10 -> 1 | D22: =Main!E10 -> 1 | X22: 103359.0798 | Y22: 46960.37657 | Z22: 97266.80887 | AA22: 0.0004332595627 | AB22: 0.0008552555282 | AC22: 0.00067953887 | AE22: 0.9607362646 | AF22: 0 | AG22: 0.9607362646
X23: 113881.2197 | Y23: 51732.52251 | Z23: 107119.6319 | AA23: 0.0004609981494 | AB23: 0.0009091265202 | AC23: 0.00072258168 | AE23: 1.114137398 | AF23: 1 | AG23: 1.114137398
A24: STEP A | B24: =(B19-B20-B21-(B13^2/2))*B22 -> 4.530389185e-05 | C24: =(C19-C20-C21-(C13^2/2))*C22 -> -0.0004144034352 | D24: =(D19-D20-D21-(D13^2/2))*D22 -> -0.0004713154652 | X24: 124060.0194 | Y24: 56350.43034 | Z24: 116652.0701 | AA24: 0.0004314039936 | AB24: 0.0008513093727 | AC24: 0.0006763532395 | AE24: 0.9608160083 | AF24: 0 | AG24: 0.9608160083
X25: 134033.1005 | Y25: 60874.61495 | Z25: 125986.4961 | AA25: 0.0004141424396 | AB25: 0.0008171043617 | AC25: 0.0006485460489 | AE25: 0.940031927 | AF25: 0 | AG25: 0.940031927
A26: STEP B | B26: =B24+B16 -> 0.0283587257 | C26: =C24+C16 -> 0.02642538302 | D26: -0.01186930634 | X26: 143714.3399 | Y26: 65266.06554 | Z26: 135048.3243 | AA26: 0.0003902590195 | AB26: 0.0007698620211 | AC26: 0.0006112195402 | AE26: 1.093418573 | AF26: 1 | AG26: 1.093418573
X27: 153037.8639 | Y27: 69493.30802 | Z27: 143777.6099 | AA27: 0.0003619522 | AB27: 0.0007133640413 | AC27: 0.0005671827117 | AE27: 0.9488284271 | AF27: 0 | AG27: 0.9488284271
A28: exponential | B28: =EXP(B26) -> 1.028764663 | C28: =EXP(C26) -> 1.026777629 | D28: 0.988200856 | X28: 162282.3115 | Y28: 73678.98156 | Z28: 152412.9123 | AA28: 0.0003558385178 | AB28: 0.0006994031758 | AC28: 0.0005550353997 | AE28: 0.9161002383 | AF28: 0 | AG28: 0.9161002383
X29: 171639.8992 | Y29: 77915.2646 | Z29: 161145.8423 | AA29: 0.0003646018318 | AB29: 0.0007164185664 | AC29: 0.0005676563972 | AE29: 0.9306726893 | AF29: 0 | AG29: 0.9306726893
A30: S(t) | B30: =B18*B28 -> 11252.77191 | C30: =C18*C28 -> 5113.609289 | D30: 10203.54935 | X30: 181309.7444 | Y30: 82294.36154 | Z30: 170171.5213 | AA30: 0.0003893409355 | AB30: 0.0007655366936 | AC30: 0.000606352755 | AE30: 1.037674792 | AF30: 1 | AG30: 1.037674792
X31: 190794.0663 | Y31: 86587.5163 | Z31: 179019.788 | AA31: 0.000374544654 | AB31: 0.0007357833936 | AC31: 0.000582749605 | AE31: 1.029928672 | AF31: 1 | AG31: 1.029928672
A32: S(t)/S(0) | B32: =B30/B18 -> 1.028764663 | C32: =C30/C18 -> 1.026777629 | D32: 0.988200856 | X32: 200399.7772 | Y32: 90934.8559 | Z32: 187978.5659 | AA32: 0.0003841935393 | AB32: 0.0007544735667 | AC32: 0.0005973971167 | AE32: 1.017190767 | AF32: 1 | AG32: 1.017190767
X33: 210152.2857 | Y33: 95348.18327 | Z33: 197071.8691 | AA33: 0.0003960260059 | AB33: 0.0007775515297 | AC33: 0.0006154728872 | AE33: 1.035944953 | AF33: 1 | AG33: 1.035944953
A34: R | B34: =AVERAGE(B32:D32) -> 1.014581049 | X34: 219665.2497 | Y34: 99653.26133 | Z34: 205941.2841 | AA34: 0.0003768102787 | AB34: 0.0007398760247 | AC34: 0.0005855386062 | AE34: 1.012013392 | AF34: 1 | AG34: 1.012013392
X35: 228925.9332 | Y35: 103844.1899 | Z35: 214574.398 | AA35: 0.0003570895234 | AB35: 0.0007011604379 | AC35: 0.0005547540942 | AE35: 1.069977248 | AF35: 1 | AG35: 1.069977248
A36: Payoff | B36: =IF(B34>=1,1,0) -> 1 | X36: 238659.1046 | Y36: 108252.7991 | Z36: 223655.9609 | AA36: 0.0003944570967 | AB36: 0.0007758899292 | AC36: 0.0006138846497 | AE36: 0.9394206843 | AF36: 0 | AG36: 0.9394206843
AE37: 0.9617507959 | AF37: 0 | AG37: 0.9617507959
A38: N.Simulations | B38: =Main!L6 -> 10000 | X38: =X36/$E$5 -> 9944.129357 | Y38: =Y36/$E$5 -> 4510.533297 | Z38: 9318.99837 | AE38: 1.103464597 | AF38: 1 | AG38: 1.103464597
A39: S(t-1) | B39: 130 | C39: 22500 | D39: 4100 | X39: =(X38/B18) -> 0.9091243444 | Y39: =Y38/C18 -> 0.9056841117 | Z39: =Z38/D18 -> 0.9025332114 | AE39: 1.080522748 | AF39: 1 | AG39: 1.080522748
A40: exp(t-1) | B40: =B39/B18 -> 0.01188501884 | C40: =C39/C18 -> 4.51784549 | D40: 0.3970798169 | Y40: =AVERAGE(X39:Z39) -> 0.9057805558 | AE40: 0.9982659836 | AF40: 0 | AG40: 0.9982659836
Y41: =IF(Y40>=1,1,0) -> 0 | AE41: 0.9399023475 | AF41: 0 | AG41: 0.9399023475
A42: Product (exp) | B42: =B40*B28 -> 0.0122268874 | C42: =C40*C28 -> 4.638822682 | D42: 0.392394615 | Y42: =EXP(-Y1*30/360)*Y41 -> 0 | AE42: 0.9345958301 | AF42: 0 | AG42: 0.9345958301
A43: Sum( S) | B43: =130+B18*B42 -> 263.7394061 | C43: =130+C18*C42 -> 23232.49666 | D43: 4181.62351 | AE43: 0.9807669627 | AF43: 0 | AG43: 0.9807669627
A44: Sum(S2) | B44: =B39^2+(B42*B18)^2 -> 34786.22875 | AE44: 1.026478353 | AF44: 1 | AG44: 1.026478353
AE45: 0.9187853161 | AF45: 0 | AG45: 0.9187853161
AE46: 0.9632535056 | AF46: 0 | AG46: 0.9632535056
AE47: 0.9755864393 | AF47: 0 | AG47: 0.9755864393
AE48: 1.003734605 | AF48: 1 | AG48: 1.003734605
AE49: 0.9636233921 | AF49: 0 | AG49: 0.9636233921
AE50: 0.8636295797 | AF50: 0 | AG50: 0.8636295797
AE51: 1.068991828 | AF51: 1 | AG51: 1.068991828
AE52: 0.9400123541 | AF52: 0 | AG52: 0.9400123541
AE53: 0.9279754526 | AF53: 0 | AG53: 0.9279754526
AE54: 0.9833254467 | AF54: 0 | AG54: 0.9833254467
A55: 1 | B55: 2 | C55: 3 | D55: 4 | E55: 5 | F55: 6 | G55: 7 | H55: 8 | I55: 9 | J55: 10 | K55: 11 | L55: 12 | M55: 13 | N55: 14 | O55: 15 | P55: 16 | Q55: 17 | R55: 18 | S55: 19 | T55: 20 | U55: 21 | V55: 22 | W55: 23 | X55: 24 | Y55: 25 | Z55: 26 | AA55: 27 | AB55: 28 | AC55: 29 | AD55: 30 | AE55: 0.9934013875 | AF55: 0 | AG55: 0.9934013875
AE56: 1.064530802 | AF56: 1 | AG56: 1.064530802
AE57: 0.9244930554 | AF57: 0 | AG57: 0.9244930554
AE58: 0.8706385722 | AF58: 0 | AG58: 0.8706385722
AE59: 1.044746202 | AF59: 1 | AG59: 1.044746202
AE60: 0.9259034141 | AF60: 0 | AG60: 0.9259034141
AE61: 0.9447996006 | AF61: 0 | AG61: 0.9447996006
AE62: 1.026083063 | AF62: 1 | AG62: 1.026083063
AE63: 0.9354203536 | AF63: 0 | AG63: 0.9354203536
AE64: 0.894673784 | AF64: 0 | AG64: 0.894673784
AE65: 0.8798537035 | AF65: 0 | AG65: 0.8798537035
AE66: 0.9632736002 | AF66: 0 | AG66: 0.9632736002
AE67: 0.9995110736 | AF67: 0 | AG67: 0.9995110736
AE68: 1.070087733 | AF68: 1 | AG68: 1.070087733
AE69: 1.01203746 | AF69: 1 | AG69: 1.01203746
AE70: 0.9058040667 | AF70: 0 | AG70: 0.9058040667
AE71: 1.034517886 | AF71: 1 | AG71: 1.034517886
AE72: 1.007945419 | AF72: 1 | AG72: 1.007945419
AE73: 0.95519106 | AF73: 0 | AG73: 0.95519106
AE74: 1.129896463 | AF74: 1 | AG74: 1.129896463
AE75: 0.943329503 | AF75: 0 | AG75: 0.943329503
AE76: 0.9879776039 | AF76: 0 | AG76: 0.9879776039
AE77: 0.9704216922 | AF77: 0 | AG77: 0.9704216922
AE78: 0.9584632928 | AF78: 0 | AG78: 0.9584632928
AE79: 1.054747333 | AF79: 1 | AG79: 1.054747333
AE80: 0.9861693118 | AF80: 0 | AG80: 0.9861693118
AE81: 1.046095179 | AF81: 1 | AG81: 1.046095179
AE82: 0.961662305 | AF82: 0 | AG82: 0.961662305
AE83: 1.016510327 | AF83: 1 | AG83: 1.016510327
AE84: 0.9435444049 | AF84: 0 | AG84: 0.9435444049
AE85: 0.9155712794 | AF85: 0 | AG85: 0.9155712794
AE86: 0.9010933148 | AF86: 0 | AG86: 0.9010933148
AE87: 0.9830569788 | AF87: 0 | AG87: 0.9830569788
AE88: 1.043513345 | AF88: 1 | AG88: 1.043513345
AE89: 1.055388045 | AF89: 1 | AG89: 1.055388045
AE90: 1.095944471 | AF90: 1 | AG90: 1.095944471
AE91: 1.044762679 | AF91: 1 | AG91: 1.044762679
AE92: 0.9432170025 | AF92: 0 | AG92: 0.9432170025
AE93: 0.8938459357 | AF93: 0 | AG93: 0.8938459357
AE94: 0.9721512697 | AF94: 0 | AG94: 0.9721512697
AE95: 1.009760426 | AF95: 1 | AG95: 1.009760426
AE96: 1.073271273 | AF96: 1 | AG96: 1.073271273
AE97: 1.001637006 | AF97: 1 | AG97: 1.001637006
AE98: 0.9838483355 | AF98: 0 | AG98: 0.9838483355
AE99: 0.9625101705 | AF99: 0 | AG99: 0.9625101705
AE100: 1.004382787 | AF100: 1 | AG100: 1.004382787
AE101: 1.020373191 | AF101: 1 | AG101: 1.020373191
AE102: 1.038778404 | AF102: 1 | AG102: 1.038778404
AE103: 0.9666761988 | AF103: 0 | AG103: 0.9666761988
AE104: 0.9914568107 | AF104: 0 | AG104: 0.9914568107
AE105: 0.8752547122 | AF105: 0 | AG105: 0.8752547122
AE106: 1.008176291 | AF106: 1 | AG106: 1.008176291
AE107: 1.007813719 | AF107: 1 | AG107: 1.007813719
AE108: 1.034191429 | AF108: 1 | AG108: 1.034191429
AE109: 1.131575912 | AF109: 1 | AG109: 1.131575912
AE110: 1.011499619 | AF110: 1 | AG110: 1.011499619
AE111: 1.109608854 | AF111: 1 | AG111: 1.109608854
AE112: 0.9160580365 | AF112: 0 | AG112: 0.9160580365
AE113: 1.001058815 | AF113: 1 | AG113: 1.001058815
AE114: 1.072384072 | AF114: 1 | AG114: 1.072384072
AE115: 0.9762714966 | AF115: 0 | AG115: 0.9762714966
AE116: 1.009581933 | AF116: 1 | AG116: 1.009581933
AE117: 1.03292784 | AF117: 1 | AG117: 1.03292784
AE118: 1.075684047 | AF118: 1 | AG118: 1.075684047
AE119: 1.070081532 | AF119: 1 | AG119: 1.070081532
AE120: 0.9447342806 | AF120: 0 | AG120: 0.9447342806
AE121: 1.058897512 | AF121: 1 | AG121: 1.058897512
AE122: 1.129735708 | AF122: 1 | AG122: 1.129735708
AE123: 0.9713664953 | AF123: 0 | AG123: 0.9713664953
AE124: 0.9436640682 | AF124: 0 | AG124: 0.9436640682
AE125: 1.005338488 | AF125: 1 | AG125: 1.005338488
AE126: 1.00631333 | AF126: 1 | AG126: 1.00631333
AE127: 1.046654787 | AF127: 1 | AG127: 1.046654787
AE128: 1.036483705 | AF128: 1 | AG128: 1.036483705
AE129: 1.014840564 | AF129: 1 | AG129: 1.014840564
AE130: 0.9983686119 | AF130: 0 | AG130: 0.9983686119
AE131: 1.032278785 | AF131: 1 | AG131: 1.032278785
AE132: 0.9215106921 | AF132: 0 | AG132: 0.9215106921
AE133: 0.9581738566 | AF133: 0 | AG133: 0.9581738566
AE134: 0.9890573653 | AF134: 0 | AG134: 0.9890573653
AE135: 0.9347184061 | AF135: 0 | AG135: 0.9347184061
AE136: 1.048805805 | AF136: 1 | AG136: 1.048805805
AE137: 1.021125933 | AF137: 1 | AG137: 1.021125933
AE138: 0.9805285083 | AF138: 0 | AG138: 0.9805285083
AE139: 0.9377400881 | AF139: 0 | AG139: 0.9377400881
AE140: 1.089307419 | AF140: 1 | AG140: 1.089307419
AE141: 0.8976061635 | AF141: 0 | AG141: 0.8976061635
AE142: 1.050132185 | AF142: 1 | AG142: 1.050132185
AE143: 0.9471502494 | AF143: 0 | AG143: 0.9471502494
AE144: 1.064896528 | AF144: 1 | AG144: 1.064896528
AE145: 0.8908776461 | AF145: 0 | AG145: 0.8908776461
AE146: 0.9792060879 | AF146: 0 | AG146: 0.9792060879
AE147: 0.9137753532 | AF147: 0 | AG147: 0.9137753532
AE148: 0.9611795582 | AF148: 0 | AG148: 0.9611795582
AE149: 0.9080743341 | AF149: 0 | AG149: 0.9080743341
AE150: 1.033901957 | AF150: 1 | AG150: 1.033901957
AE151: 0.8754677844 | AF151: 0 | AG151: 0.8754677844
AE152: 0.9561728814 | AF152: 0 | AG152: 0.9561728814
AE153: 1.068573656 | AF153: 1 | AG153: 1.068573656
AE154: 1.067515778 | AF154: 1 | AG154: 1.067515778
AE155: 0.9507095817 | AF155: 0 | AG155: 0.9507095817
AE156: 1.020667689 | AF156: 1 | AG156: 1.020667689
AE157: 1.078228195 | AF157: 1 | AG157: 1.078228195
AE158: 1.045077332 | AF158: 1 | AG158: 1.045077332
AE159: 0.986710067 | AF159: 0 | AG159: 0.986710067
AE160: 0.9591560306 | AF160: 0 | AG160: 0.9591560306
AE161: 1.033614249 | AF161: 1 | AG161: 1.033614249
AE162: 1.040452545 | AF162: 1 | AG162: 1.040452545
AE163: 0.9214001506 | AF163: 0 | AG163: 0.9214001506
AE164: 0.945231322 | AF164: 0 | AG164: 0.945231322
AE165: 0.9844178567 | AF165: 0 | AG165: 0.9844178567
AE166: 1.150857085 | AF166: 1 | AG166: 1.150857085
AE167: 0.9359895163 | AF167: 0 | AG167: 0.9359895163
AE168: 1.009967007 | AF168: 1 | AG168: 1.009967007
AE169: 0.9176372786 | AF169: 0 | AG169: 0.9176372786
AE170: 1.000395084 | AF170: 1 | AG170: 1.000395084
AE171: 1.030689673 | AF171: 1 | AG171: 1.030689673
AE172: 1.010622448 | AF172: 1 | AG172: 1.010622448
AE173: 1.083467257 | AF173: 1 | AG173: 1.083467257
AE174: 0.9135250571 | AF174: 0 | AG174: 0.9135250571
AE175: 1.123321049 | AF175: 1 | AG175: 1.123321049
AE176: 1.117222312 | AF176: 1 | AG176: 1.117222312
AE177: 0.9077545799 | AF177: 0 | AG177: 0.9077545799
AE178: 0.9895988372 | AF178: 0 | AG178: 0.9895988372
AE179: 1.052746934 | AF179: 1 | AG179: 1.052746934
AE180: 1.056865014 | AF180: 1 | AG180: 1.056865014
AE181: 0.9691567095 | AF181: 0 | AG181: 0.9691567095
AE182: 1.136229062 | AF182: 1 | AG182: 1.136229062
AE183: 0.9246192377 | AF183: 0 | AG183: 0.9246192377
AE184: 0.966883505 | AF184: 0 | AG184: 0.966883505
AE185: 0.9921035948 | AF185: 0 | AG185: 0.9921035948
AE186: 1.003706095 | AF186: 1 | AG186: 1.003706095
AE187: 0.9870582676 | AF187: 0 | AG187: 0.9870582676
AE188: 1.038735911 | AF188: 1 | AG188: 1.038735911
AE189: 0.989900383 | AF189: 0 | AG189: 0.989900383
AE190: 0.948703142 | AF190: 0 | AG190: 0.948703142
AE191: 0.947935698 | AF191: 0 | AG191: 0.947935698
AE192: 0.9585967553 | AF192: 0 | AG192: 0.9585967553
AE193: 0.9146150173 | AF193: 0 | AG193: 0.9146150173
AE194: 0.9450039283 | AF194: 0 | AG194: 0.9450039283
AE195: 1.059033528 | AF195: 1 | AG195: 1.059033528
AE196: 0.9010942027 | AF196: 0 | AG196: 0.9010942027
AE197: 1.10396531 | AF197: 1 | AG197: 1.10396531
AE198: 0.9873590625 | AF198: 0 | AG198: 0.9873590625
AE199: 1.060654373 | AF199: 1 | AG199: 1.060654373
AE200: 0.9667716728 | AF200: 0 | AG200: 0.9667716728
AE201: 1.017887221 | AF201: 1 | AG201: 1.017887221
... 2049 more rows

Sheet Cholesky
B2: CHOLESKY DECOMPOSITION
E5: Correlation | P5: Non Standardized : VAR-COVAR
E6: 3mo | F6: 6mo | G6: 9mo | H6: 12mo | I6: 18mo
E7: r1 | F7: r2 | G7: r3 | H7: r4 | I7: r5 | Q7: GILT | R7: FTSE | S7: S&P | T7: USD/GBP | U7: SIGMAS | V7: RETURNS
C8: 3mo | D8: r1 | E8: 1 | F8: 0.5376665443 | G8: 0.06287788036
C9: 6mo | D9: r2 | E9: 0.5376665443 | F9: 1 | G9: 0.6491442463 | P9: GILT | Q9: 5.5884 | R9: 1.6749 | S9: 0.2233 | T9: -1.0528 | U9: =Q9^0.5 -> 2.363979695 | V9: 0.05
C10: 9mo | D10: r3 | E10: 0.06287788036 | F10: 0.6491442463 | G10: 1 | P10: FTSE | Q10: 1.6749 | R10: 22.366 | S10: 10.0886 | T10: -5.5765 | U10: =R10^0.5 -> 4.729270557 | V10: 0.125
C11: 12mo | D11: r4 | P11: S&P | Q11: 0.2233 | R11: 10.0886 | S11: 10.773 | T11: -0.5839 | U11: =S11^0.5 -> 3.282224855 | V11: 22.5
C12: 18mo | D12: r5 | P12: USD/GBP | Q12: -1.0528 | R12: -5.5765 | S12: -0.5839 | T12: 16.2161 | U12: =T12^0.5 -> 4.026921901 | V12: -4
B15: New | C15: Return Type | E15: L | L15: 1 | M15: 0.5376665443 | N15: 0.06287788036
C16: Activation | E16: 1 | L16: 0.5376665443 | M16: 1 | N16: 0.6491442463
L17: 0.06287788036 | M17: 0.6491442463 | N17: 1
D19: Cholesky Decomposition of Correlation Matrix | Q19: =Cholesky(Q9:T12) -> Inactive | R19: Inactive | S19: Inactive | T19: Inactive
Q20: Inactive | R20: Inactive | S20: Inactive | T20: Inactive
E21: =Cholesky(E8:G10,E16,E15) -> 1 | F21: 0 | G21: 0 | Q21: Inactive | R21: Inactive | S21: Inactive | T21: Inactive
E22: 0.5376665443 | F22: 0.8431575696 | G22: 0 | Q22: Inactive | R22: Inactive | S22: Inactive | T22: Inactive
E23: 0.06287788036 | F23: 0.729800616 | G23: 0.680762391
Q24: 0.05 | R24: 0.125 | S24: 22.5 | T24: -4
B28: VALIDATION | D28: Transpose of Cholesky Matrix
E30: =TRANSPOSE(E21:G23) -> 1 | F30: 0.5376665443 | G30: 0.06287788036
E31: 0 | F31: 0.8431575696 | G31: 0.729800616
E32: 0 | F32: 0 | G32: 0.680762391
D37: P= Cholesky* CholesyTranspose
E40: =MMULT(E21:G23,E30:G32) -> 1 | F40: 0.5376665443 | G40: 0.06287788036
E41: 0.5376665443 | F41: 1 | G41: 0.6491442463
E42: 0.06287788036 | F42: 0.6491442463 | G42: 1
D46: Difference with Original Matrix
E49: =E40-E8 -> 0 | F49: 0 | G49: 0
E50: 0 | F50: 0 | G50: 0
E51: 0 | F51: 0 | G51: 0
E52: =E43-E11 -> 

Sheet Results
B4: Option value | C4: =C5*EXP(-SimCalc!Y1*30/360) -> 0.4667185313 | F4: 0.4833585814
B5: Probability of being in the money | C5: =AVERAGE(SimCalc!AF13:AF10012) -> 0.4684 | F5: 0.4851
B6: Variance | C6: =VAR(SimCalc!AG13:AG10012) -> 0.003945939403 | F6: 0.2480126972
B7: standard error of simulation | C7: =SQRT(C6/Main!L6) -> 0.0006281671277 | F7: 0.004980087321
B9: Confidence interval | C9: =C4-NORMSINV(C10)*C7 -> 0.465257196 | D9: =C4+NORMSINV(C10)*C7 -> 0.4681798665 | F9: 0.4717731658 | G9: 0.4949439969
B10: Confidence level | C10: 0.99 | F10: 0.99
B11: Width of confidence interval | C11: =D9-C9 -> 0.002922670524 | F11: 0.0231708311
B12: Width of confidence interval (% of value) | C12: =C11/C9 -> 0.006281838409 | F12: 0.04911434727
C17: - | D17: +
C18: 0.4833585814
B19: S1 | C19: 0.4861485299 | D19: 0.486447453
B20: S2 | C20: 0.4822625302 | D20: 0.4830596583
B21: S3 | C21: 0.4789743766 | D21: 0.4792732996
B22: sigma1 | C22: 0.4718998642 | D22: 0.4843549916
B23: sigma2 | C23: 0.4851521197 | D23: 0.4862481709
B24: sigma3 | C24: 0.4800704278 | D24: 0.4839564275
B25: Prob P | C25: 0.1456
B26: Prob Q | C26: 0.4851
B28: Delta1 | C28: =(D19-C19)/2 -> 0.0001494615279
B29: Delta2 | C29: =(D20-C20)/2 -> 0.0003985640745
B30: Delta3 | C30: 0.0001494615279
B31: Gamma1 | C31: =(C19+D19-2*$C$18)/1 -> 0.005878820099
B32: Gamma2 | C32: =(C20+D20-2*$C$18)/1 -> -0.001394974261
B33: Gamma3 | C33: =(C21+D21-2*$C$18)/1 -> -0.008469486584
B34: Vega1 | C34: =-(C22-D22)/0.01 -> 1.245512733
B35: Vega2 | C35: =-(C23-D23)/0.01 -> 0.1096051205
B36: Vega3 | C36: =-(C24-D24)/0.01 -> 0.3885999727
